bitfinex/quotes_ETHUSD_20250801
["timestamp","ask_amount","ask_price","bid_price","bid_amount"]
[1754022483638,0.8952,3695.8,3695.7,0.1352]
[1754022483967,0.8952,3695.8,3695.7,4.3552]
[1754022484167,0.001,3695.8,3695.7,4.9052]
[1754022484350,0.001,3695.8,3695.7,5.39572]
[1754022484351,0.4517,3695.8,3695.7,5.39572]
[1754022485139,0.4517,3695.8,3695.7,8.10156733]
[1754022485375,0.001,3695.8,3695.7,8.10156733]
[1754022485846,0.4517,3695.8,3695.7,5.39572]
[1754022486042,0.4517,3695.8,3695.7,1.37929061]
[1754022486243,0.8952,3695.8,3695.7,5.10777061]
[1754022486448,0.8952,3695.8,3695.7,4.55777061]
[1754022487144,0.8952,3695.8,3695.7,0.33877061]
[1754022487472,0.8952,3695.8,3695.7,4.55777061]
[1754022488685,0.8952,3695.8,3695.7,0.33877061]
[1754022488840,0.8952,3695.8,3695.7,0.1352]
[1754022489036,0.8952,3695.8,3695.7,4.3542]
[1754022489272,1.1444991,3695.8,3695.7,4.3542]
[1754022489469,1.1444991,3695.8,3695.7,0.1352]
[1754022489671,1.1444991,3695.8,3695.7,4.3542]
[1754022490574,1.1444991,3695.8,3695.7,0.1352]
[1754022491239,1.39449213,3695.8,3695.7,0.1352]
[1754022492644,1.53594134,3695.8,3695.7,0.1352]
[1754022493144,1.53594134,3695.8,3695.0,4.218]
[1754022493341,1.39349213,3695.7,3695.0,0.20309929]
[1754022493660,0.49929213,3695.6,3694.9,0.002]
[1754022493843,0.49929213,3695.5,3695.1,0.1352]
[1754022494173,0.49929213,3695.4,3695.1,0.1352]
[1754022494377,0.49955303,3695.3,3695.1,0.1352]
[1754022494680,0.1352,3695.6,3695.1,0.1352]
[1754022494681,0.49948741,3695.2,3695.1,0.1352]
[1754022494875,0.95018741,3695.2,3695.0,0.20289336]
[1754022495214,1.39368741,3695.1,3694.9,0.552]
[1754022495352,0.2492991,3695.0,3694.9,0.552]
[1754022495560,1.1434991,3695.0,3694.9,0.552]
[1754022495865,1.1434991,3695.0,3694.9,0.6872]
[1754022496203,1.1434991,3695.0,3694.9,0.1372]
[1754022497099,1.39355807,3695.0,3694.9,0.1372]
[1754022497888,1.1434991,3695.0,3694.9,0.1372]
[1754022498244,1.39342995,3695.0,3694.9,0.1372]
[1754022498950,1.53277295,3695.0,3694.9,0.1372]
[1754022499156,1.53277295,3695.0,3694.9,0.002]
[1754022501492,1.39342995,3695.0,3694.9,0.002]
[1754022503499,0.2492991,3695.0,3694.9,0.002]
[1754022503698,0.4954,3695.0,3694.9,0.1372]
[1754022503993,1.21372275,3695.0,3694.9,0.1372]
[1754022504494,0.9642,3695.0,3694.9,0.1372]
[1754022504683,1.21374251,3695.0,3694.9,0.1372]
[1754022505687,0.4688,3695.5,3694.9,0.1372]
[1754022506001,0.4954,3695.2,3694.9,0.1372]
[1754022506158,0.9642,3695.1,3694.9,0.002]
[1754022506364,0.1362,3695.8,3695.1,0.1352]
[1754022506567,0.1362,3695.8,3694.9,0.002]
[1754022506568,0.49919966,3695.7,3695.3,0.1352]
[1754022506768,0.49919966,3695.6,3695.3,0.1352]
[1754022506966,0.1362,3695.8,3695.3,0.1352]
[1754022506967,0.99459966,3695.5,3695.3,0.1352]
[1754022507193,0.24959983,3695.4,3695.0,3.25630963]
[1754022507409,0.4954,3695.7,3695.4,0.1352]
[1754022507719,0.49927922,3695.6,3695.2,0.55]
[1754022508017,0.24963961,3695.5,3695.2,0.55]
[1754022508178,0.4954,3695.7,3695.4,0.1352]
[1754022508372,0.49935974,3695.6,3695.4,0.1352]
[1754022508569,0.4954,3695.6,3695.2,3.2561924]
[1754022508794,0.001,3695.8,3695.5,0.1352]
[1754022509168,0.001,3695.8,3695.7,0.1352]
[1754022510072,0.001,3695.8,3695.7,3.39104733]
[1754022511019,0.001,3695.8,3695.7,3.5805058]
[1754022511181,0.001,3695.8,3695.7,6.5805058]
[1754022511366,0.001,3695.8,3695.7,8.64630832]
[1754022511990,0.001,3695.8,3695.7,8.75472932]
[1754022512593,0.001,3695.8,3695.7,8.59232932]
[1754022512803,0.001,3695.8,3695.7,12.69990832]
[1754022513104,0.9652,3695.8,3695.7,0.1352]
[1754022514300,0.001,3695.8,3695.7,0.1352]
[1754022515582,0.001,3695.8,3695.7,3.39104733]
[1754022517086,0.001,3695.8,3695.7,0.6852]
[1754022518003,0.9652,3695.8,3695.7,4.3502]
[1754022518301,0.9652,3695.8,3695.7,0.1352]
[1754022519412,0.9652,3695.8,3695.1,4.215]
[1754022519713,0.9642,3695.7,3695.5,0.1352]
[1754022519919,0.9642,3695.7,3695.3,0.1352]
[1754022520117,0.9642,3695.6,3695.3,0.1352]
[1754022520301,0.001,3695.8,3695.3,0.1352]
[1754022520505,0.9642,3695.5,3695.3,0.1352]
[1754022520703,0.9642,3695.4,3695.3,0.1352]
[1754022522636,0.9642,3695.4,3694.5,0.1]
[1754022522834,0.1352,3695.5,3695.0,0.1352]
[1754022523034,0.9642,3695.3,3695.0,0.1352]
[1754022523215,0.1352,3695.5,3695.0,0.1352]
[1754022523414,0.9642,3695.2,3695.0,0.1352]
[1754022523614,0.9642,3695.1,3695.0,0.1352]
[1754022525041,0.9642,3695.1,3694.5,0.1]
[1754022525293,0.9642,3695.0,3694.5,0.1]
[1754022525400,1.0994,3695.0,3694.5,0.1]
[1754022527917,1.0994,3695.0,3694.5,0.2352]
[1754022528644,0.4556,3695.5,3694.9,0.1372]
[1754022529544,0.8855,3695.5,3694.9,0.002]
[1754022529952,0.8855,3695.4,3694.9,0.002]
[1754022530103,0.1352,3695.2,3694.9,0.002]
[1754022530536,0.8855,3695.1,3694.9,0.002]
[1754022531042,0.8855,3695.0,3694.9,0.002]
[1754022536058,1.0207,3695.0,3694.9,0.002]
[1754022540583,0.4556,3695.2,3694.9,0.002]
[1754022540881,0.4556,3695.1,3694.9,0.002]
[1754022541077,0.8855,3695.1,3694.9,0.002]
[1754022541235,0.4299,3695.1,3694.9,0.002]
[1754022541436,0.4556,3695.0,3694.9,0.002]
[1754022541640,0.1352,3695.2,3694.9,0.002]
[1754022541874,4.213,3695.5,3694.9,0.029]
[1754022542051,4.6686,3695.5,3695.1,0.1352]
[1754022542250,4.213,3695.5,3695.1,0.1352]
[1754022542871,4.6686,3695.5,3695.1,0.1352]
[1754022543078,0.4556,3695.5,3695.1,0.1352]
[1754022543278,0.1352,3695.6,3695.1,0.1352]
[1754022543581,4.213,3695.8,3695.4,0.1352]
[1754022544162,0.4556,3695.7,3695.4,0.1352]
[1754022544367,4.213,3695.8,3695.4,0.1352]
[1754022545397,0.24993741,3695.7,3695.4,0.1352]
[1754022545552,4.213,3695.8,3695.4,0.1352]
[1754022545753,0.001,3695.8,3695.4,0.1352]
[1754022545954,0.001,3695.8,3695.1,0.1354]
[1754022545955,0.001,3695.8,3695.7,0.1352]
[1754022546379,0.50087418,3695.8,3695.7,0.1352]
[1754022546592,0.25093709,3695.8,3695.7,0.1352]
[1754022546963,0.001,3695.8,3695.7,0.6852]
[1754022547283,0.001,3695.8,3695.7,3.8476]
[1754022547489,0.001,3695.8,3695.7,8.37301106]
[1754022547882,0.001,3695.8,3695.7,8.57211746]
[1754022549636,0.02,3696.9,3695.7,8.57211746]
[1754022549637,0.4556,3699.1,3696.8,2.70504219]
[1754022549853,0.4556,3699.1,3696.9,0.29755391]
[1754022549854,0.4556,3698.0,3696.9,0.29755391]
[1754022550009,0.4556,3698.0,3695.9,0.1354]
[1754022550010,0.8855,3697.8,3695.9,0.1354]
[1754022550191,0.1352,3697.2,3696.7,0.1352]
[1754022550386,0.8855,3697.1,3696.7,0.1352]
[1754022550726,0.8855,3697.0,3696.6,0.1352]
[1754022550911,0.8855,3697.0,3694.9,0.002]
[1754022551120,0.1352,3696.6,3696.0,0.1352]
[1754022551505,0.8855,3696.5,3696.0,0.1352]
[1754022551712,0.1352,3696.6,3696.0,0.1352]
[1754022551932,0.8855,3696.4,3696.0,0.1352]
[1754022552135,0.1352,3696.6,3694.9,1.18265168]
[1754022552136,0.1352,3696.1,3695.6,0.1352]
[1754022552438,0.8855,3696.0,3695.6,0.1352]
[1754022552606,0.1352,3696.1,3695.6,0.1352]
[1754022552807,0.8855,3695.9,3695.6,0.1352]
[1754022553006,0.8855,3695.8,3695.6,0.1352]
[1754022553210,0.8855,3696.3,3695.6,0.1352]
[1754022553510,0.4556,3696.2,3695.6,0.1352]
[1754022553820,0.8855,3696.2,3695.6,0.1352]
[1754022554018,0.1352,3696.0,3695.4,0.1352]
[1754022554218,0.8855,3695.9,3695.4,0.1352]
[1754022554417,0.8855,3695.8,3695.4,0.1352]
[1754022554617,0.8855,3695.7,3695.4,0.1352]
[1754022554925,0.1352,3696.0,3695.1,0.02]
[1754022554926,0.8855,3695.6,3695.1,0.02]
[1754022555128,0.8855,3695.5,3695.1,0.1552]
[1754022555463,0.4556,3695.8,3695.4,0.1352]
[1754022555764,0.8855,3695.7,3695.4,0.1352]
[1754022555931,0.1352,3696.0,3695.4,0.1352]
[1754022556128,0.8855,3695.9,3695.4,0.1352]
[1754022556335,0.8871,3695.9,3695.4,0.1352]
[1754022556727,0.1352,3696.2,3695.7,0.1352]
[1754022556927,0.889,3695.8,3695.1,0.02]
[1754022557129,0.889,3695.8,3695.5,0.1352]
[1754022557340,0.1352,3696.0,3695.5,0.1352]
[1754022557531,0.889,3695.7,3695.5,0.1352]
[1754022557729,0.889,3695.6,3695.1,0.02]
[1754022557929,0.889,3695.5,3695.1,0.02]
[1754022558219,0.889,3695.5,3695.1,0.1552]
[1754022558523,0.889,3695.4,3695.1,0.02]
[1754022558745,0.889,3695.3,3695.1,0.02]
[1754022559054,1.29142,3695.3,3695.1,0.02]
[1754022559357,0.889,3695.2,3695.1,0.02]
[1754022565459,0.1352,3695.4,3695.1,0.02]
[1754022565960,0.4572,3695.3,3695.1,0.02]
[1754022566369,0.4572,3695.2,3695.1,0.1552]
[1754022566550,0.889,3695.2,3695.1,0.1552]
[1754022566754,0.889,3695.2,3695.1,0.02]
[1754022570988,0.1352,3695.4,3695.1,0.02]
[1754022571195,0.5924,3695.6,3695.1,0.1552]
[1754022571399,0.1352,3695.6,3695.1,0.1552]
[1754022571630,0.889,3695.5,3695.1,0.1552]
[1754022571929,0.4572,3695.5,3695.1,0.1552]
[1754022572125,0.4572,3695.4,3695.1,0.1552]
[1754022572484,0.4572,3695.3,3695.1,0.1552]
[1754022573593,0.1352,3695.6,3695.1,0.1552]
[1754022573919,0.4572,3695.5,3695.1,0.1552]
[1754022574276,4.21,3695.6,3695.1,0.1552]
[1754022574709,0.4572,3695.5,3695.1,0.1552]
[1754022575212,4.21,3695.6,3695.1,0.1552]
[1754022575720,4.21,3695.6,3695.1,0.02]
[1754022575882,4.21,3695.6,3695.5,0.1352]
[1754022576897,4.6672,3695.6,3695.5,0.1352]
[1754022577643,5.099,3695.6,3695.1,0.02]
[1754022577985,0.889,3695.5,3695.1,0.022]
[1754022578436,4.21,3695.6,3695.1,0.022]
[1754022578437,0.889,3695.4,3695.1,0.022]
[1754022578897,0.1352,3695.5,3695.1,0.022]
[1754022579238,0.889,3695.3,3695.1,0.022]
[1754022579539,0.889,3695.2,3695.1,0.022]
[1754022580714,0.4572,3695.2,3695.1,0.022]
[1754022581920,0.889,3695.2,3695.1,0.022]
[1754022584119,0.4572,3695.2,3695.1,0.022]
[1754022584316,4.3442,3695.5,3695.1,0.022]
[1754022584515,4.209,3695.5,3695.1,0.1572]
[1754022584754,4.209,3695.5,3695.3,0.1352]
[1754022584955,0.4572,3695.9,3695.3,0.1352]
[1754022585155,0.4572,3695.9,3695.1,0.022]
[1754022585156,0.50117694,3695.8,3695.7,0.1352]
[1754022585720,0.95837694,3695.8,3695.7,0.1352]
[1754022586132,1.39017694,3695.8,3695.7,0.1352]
[1754022586461,1.95009463,3695.8,3695.5,0.1352]
[1754022586656,1.95009463,3695.8,3695.1,0.022]
[1754022586657,1.38817694,3695.7,3695.1,0.022]
[1754022586873,0.1352,3695.5,3695.1,0.022]
[1754022587023,4.70917694,3695.4,3695.1,0.022]
[1754022587225,4.208,3695.4,3695.1,0.022]
[1754022587751,0.887,3695.3,3695.1,0.022]
[1754022588158,4.208,3695.4,3695.1,0.022]
[1754022588325,0.887,3695.2,3695.1,0.022]
[1754022595771,1.41002,3695.2,3695.1,0.022]
[1754022595984,2.04664654,3695.2,3694.9,0.002]
[1754022596247,1.38842654,3695.1,3694.9,0.002]
[1754022596475,4.70942654,3695.0,3694.9,0.002]
[1754022596892,5.73162654,3695.0,3694.9,0.002]
[1754022597093,6.35709119,3695.0,3694.9,0.002]
[1754022598298,9.35709119,3695.0,3694.9,0.002]
[1754022600813,32.70665295,3694.6,3694.5,0.1]
[1754022601021,3.0,3694.4,3694.1,0.02]
[1754022601315,3.1352,3694.2,3693.1,0.02]
[1754022601521,0.1352,3693.3,3693.1,0.02]
[1754022601675,4.207,3693.2,3693.1,0.02]
[1754022602571,0.4593,3693.3,3693.1,0.02]
[1754022602802,4.207,3693.2,3693.1,0.02]
[1754022603305,4.6663,3693.2,3693.1,0.02]
[1754022603503,4.207,3693.2,3693.1,0.02]
[1754022603706,4.207,3693.2,3693.1,0.5616]
[1754022604337,4.207,3693.2,3693.1,0.1552]
[1754022604668,4.208,3693.4,3693.1,0.5616]
[1754022604869,4.208,3693.9,3693.3,0.6852]
[1754022605173,0.1352,3694.7,3693.5,0.55]
[1754022605394,0.1352,3694.7,3693.8,0.1352]
[1754022605579,4.208,3694.6,3694.3,0.1352]
[1754022607205,4.6673,3694.6,3694.3,0.1352]
[1754022607406,4.208,3694.6,3694.3,0.1352]
[1754022607909,6.505,3695.0,3694.5,0.1352]
[1754022608072,4.207,3694.9,3694.5,0.1352]
[1754022608878,4.6663,3694.9,3694.5,0.1352]
[1754022609292,0.4593,3694.8,3694.5,0.1352]
[1754022609610,0.887,3694.8,3694.5,0.1352]
[1754022610295,0.4593,3694.7,3694.5,0.1352]
[1754022610497,4.207,3694.6,3693.4,0.251]
[1754022610708,4.207,3694.6,3693.7,0.1352]
[1754022610709,0.1352,3694.2,3693.7,0.1352]
[1754022610884,5.094,3694.1,3692.8,0.251]
[1754022611084,5.094,3694.1,3693.5,0.1352]
[1754022611085,4.207,3694.1,3693.5,0.1352]
[1754022611276,1.45642,3694.0,3693.5,0.1352]
[1754022611703,0.887,3693.9,3693.5,0.1352]
[1754022611909,0.4593,3693.9,3693.5,0.1352]
[1754022612114,0.887,3693.8,3693.5,0.1352]
[1754022612320,5.094,3693.7,3693.5,0.1352]
[1754022612528,0.887,3693.6,3693.5,0.1352]
[1754022612812,0.887,3693.6,3693.3,0.1352]
[1754022612976,0.887,3693.5,3693.3,0.1352]
[1754022613378,0.887,3693.4,3693.3,0.1352]
[1754022613616,0.887,3693.4,3693.0,0.1352]
[1754022613817,5.094,3693.3,3692.1,0.02]
[1754022614024,0.1352,3693.2,3692.7,0.1352]
[1754022614435,1.0222,3693.2,3692.7,0.1352]
[1754022614608,1.597412,3693.2,3692.7,0.1352]
[1754022616103,1.597412,3693.2,3692.1,0.02]
[1754022616308,1.597412,3693.2,3692.6,0.1352]
[1754022617807,0.1352,3693.2,3692.6,0.1352]
[1754022618007,0.1352,3693.2,3692.9,0.1352]
[1754022618008,4.207,3693.2,3692.9,0.1352]
[1754022618212,4.207,3693.2,3693.1,0.1552]
[1754022618716,4.207,3693.2,3693.1,0.02]
[1754022618717,5.1442,3693.2,3693.1,0.02]
[1754022619131,5.2794,3693.2,3693.1,0.02]
[1754022619297,5.80734,3693.2,3693.1,0.02]
[1754022621540,5.80734,3693.2,3693.1,0.022]
[1754022621927,5.2794,3693.2,3693.1,0.022]
[1754022623930,1.0724,3693.2,3693.1,0.022]
[1754022624146,5.2794,3693.2,3693.1,0.022]
[1754022625075,1.0724,3693.2,3693.1,0.022]
[1754022625372,5.2794,3693.2,3693.1,0.022]
[1754022625671,5.80734,3693.2,3693.1,0.022]
[1754022629381,4.11713,3694.7,3693.1,0.022]
[1754022629535,0.499,3693.2,3693.1,0.022]
[1754022629886,4.705,3693.2,3693.1,0.022]
[1754022630639,4.206,3693.2,3693.1,0.022]
[1754022631690,0.1352,3693.3,3693.1,0.022]
[1754022631896,4.206,3693.2,3693.1,0.022]
[1754022632862,5.1432,3693.2,3693.1,0.022]
[1754022633593,5.67104,3693.2,3693.1,0.022]
[1754022633900,4.73384,3693.2,3693.1,0.022]
[1754022634188,4.206,3693.2,3693.1,0.022]
[1754022634506,5.1432,3693.2,3693.1,0.022]
[1754022635592,0.499,3694.1,3693.1,0.022]
[1754022635793,0.49844611,3694.0,3693.1,0.273]
[1754022635958,0.24922026,3693.9,3693.5,0.1352]
[1754022636289,4.205,3693.8,3693.5,0.1352]
[1754022636792,1.18651744,3693.7,3693.1,0.022]
[1754022636998,0.1352,3693.3,3693.1,0.022]
[1754022637200,4.205,3693.2,3693.1,0.022]
[1754022638085,0.52774,3693.8,3693.1,0.022]
[1754022638311,0.499,3693.6,3693.1,0.1572]
[1754022638523,0.24949479,3693.5,3693.1,0.1572]
[1754022638721,4.205,3693.4,3693.1,0.1572]
[1754022639110,4.704,3693.4,3693.1,0.1572]
[1754022639628,4.205,3693.4,3693.1,0.1572]
[1754022640201,0.25000389,3693.3,3693.1,0.1572]
[1754022640398,0.9372,3693.2,3693.1,0.022]
[1754022640624,0.499,3693.2,3693.1,0.022]
[1754022640926,0.499,3693.3,3693.1,0.022]
[1754022641287,0.4382,3693.3,3693.1,0.022]
[1754022641485,0.499,3693.2,3693.1,0.022]
[1754022642115,0.9372,3693.2,3693.1,0.022]
[1754022642298,1.46494,3693.2,3693.1,0.022]
[1754022642500,1.71515948,3693.2,3693.1,0.022]
[1754022642703,2.10057534,3693.2,3693.1,0.022]
[1754022642929,1.60014,3693.2,3693.1,0.022]
[1754022643134,5.2764,3693.2,3693.1,0.022]
[1754022643427,5.77682916,3693.2,3693.1,0.022]
[1754022649140,5.77690147,3693.2,3693.1,0.022]
[1754022649436,8.52661458,3693.2,3693.1,0.022]
[1754022649618,8.7770664,3693.2,3693.1,0.022]
[1754022649795,9.65477304,3693.2,3693.1,0.022]
[1754022650240,39.65477304,3693.2,3693.1,0.022]
[1754022650528,42.36245201,3693.2,3693.1,0.022]
[1754022651306,42.91245201,3693.2,3693.1,0.022]
[1754022651940,42.91245201,3693.2,3692.7,0.1]
[1754022651941,35.70797227,3692.8,3692.7,0.1]
[1754022652146,49.00047567,3692.8,3692.7,0.1]
[1754022652341,50.60517567,3692.8,3692.7,0.1]
[1754022653811,53.45817567,3692.8,3692.7,0.1]
[1754022654206,3.25841232,3692.2,3692.1,0.02]
[1754022654435,44.56141995,3692.2,3692.1,0.02]
[1754022654738,45.48091995,3692.2,3692.1,0.02]
[1754022654933,32.70914607,3691.2,3691.1,0.022]
[1754022655235,41.09801247,3691.2,3691.1,0.022]
[1754022655399,42.52350124,3691.2,3691.1,0.022]
[1754022656152,12.86078097,3691.2,3691.1,0.022]
[1754022656305,42.86078097,3691.2,3691.1,0.022]
[1754022657123,39.95025901,3691.2,3691.1,0.022]
[1754022657326,42.65940508,3691.2,3691.1,0.022]
[1754022657836,39.95025901,3691.2,3691.1,0.022]
[1754022658238,42.65541168,3691.2,3691.1,0.022]
[1754022658602,40.14642209,3691.2,3691.1,0.022]
[1754022658834,39.81206561,3691.2,3691.1,0.022]
[1754022659019,39.94726561,3691.2,3691.1,0.022]
[1754022659339,35.19326561,3691.2,3691.1,0.022]
[1754022659539,39.39726561,3691.2,3691.1,0.022]
[1754022659833,42.86124904,3691.2,3691.1,0.022]
[1754022660038,40.15210297,3691.2,3691.1,0.022]
[1754022660239,35.19326561,3691.2,3691.1,0.022]
[1754022660534,42.65641168,3691.2,3691.1,0.022]
[1754022660954,42.65741168,3691.2,3691.1,0.022]
[1754022661555,39.94726561,3691.2,3691.1,0.022]
[1754022661859,42.65641168,3691.2,3691.1,0.022]
[1754022662244,42.85793557,3691.2,3691.1,0.022]
[1754022662763,38.65393557,3691.2,3691.1,0.022]
[1754022663059,39.94726561,3691.2,3691.1,0.022]
[1754022663930,35.74326561,3691.2,3691.1,0.022]
[1754022664126,42.65741168,3691.2,3691.1,0.022]
[1754022664327,39.94826561,3691.2,3691.1,0.022]
[1754022664723,34.00266177,3691.2,3691.1,0.022]
[1754022664927,4.13786177,3691.2,3691.1,0.022]
[1754022665165,8.09352527,3691.2,3691.1,0.022]
[1754022665539,8.22756698,3691.2,3691.1,0.022]
[1754022665739,4.02356698,3691.2,3691.1,0.022]
[1754022665963,8.22756698,3691.2,3691.1,0.022]
[1754022666326,3.88836698,3691.2,3691.1,0.022]
[1754022666526,0.1352,3691.2,3691.1,0.022]
[1754022666763,4.3392,3691.2,3691.1,0.4284]
[1754022666963,7.3392,3691.2,3691.1,0.022]
[1754022669555,3.1352,3691.2,3691.1,0.273]
[1754022669956,7.3392,3691.2,3691.1,0.273]
[1754022671102,7.3392,3691.2,3691.1,0.022]
[1754022671103,3.1352,3691.2,3691.1,0.022]
[1754022671287,7.3392,3691.2,3691.1,0.273]
[1754022671889,7.3392,3691.2,3691.1,0.022]
[1754022672497,7.3392,3691.2,3691.1,0.273]
[1754022672694,7.3392,3691.2,3691.1,0.022]
[1754022673000,8.53442,3691.2,3691.1,0.022]
[1754022673317,8.07312,3691.2,3691.1,0.022]
[1754022673486,7.3392,3691.2,3691.1,0.022]
[1754022673803,8.2587,3691.2,3691.1,0.022]
[1754022674473,7.3392,3691.2,3691.1,0.022]
[1754022675602,7.8005,3691.2,3691.1,0.022]
[1754022675912,9.08457,3691.2,3691.1,0.022]
[1754022676073,42.84023315,3691.2,3691.1,0.022]
[1754022676273,40.13108708,3691.2,3691.1,0.022]
[1754022676485,42.84023315,3691.2,3691.1,0.022]
[1754022676687,40.13108708,3691.2,3691.1,0.022]
[1754022677579,42.84023315,3691.2,3691.1,0.022]
[1754022678083,15.69323315,3691.2,3691.1,0.022]
[1754022678291,45.69323315,3691.2,3691.1,0.022]
[1754022679812,42.84023315,3691.2,3691.1,0.022]
[1754022680115,38.66158708,3691.2,3691.1,0.022]
[1754022680495,38.66244904,3691.2,3691.1,0.022]
[1754022681084,38.66144904,3691.2,3691.1,0.022]
[1754022681679,34.45844904,3691.2,3691.1,0.022]
[1754022681902,38.66144904,3691.2,3691.1,0.022]
[1754022682200,8.66144904,3691.2,3691.1,0.022]
[1754022682402,9.11844904,3691.2,3691.1,0.022]
[1754022682607,9.55974904,3691.2,3691.1,0.022]
[1754022682919,42.81889511,3691.2,3691.1,0.022]
[1754022683512,8.56221947,3691.1,3691.0,0.002]
[1754022683837,40.51572392,3691.1,3691.0,0.002]
[1754022684793,41.33712392,3691.1,3691.0,0.002]
[1754022685396,35.70943968,3690.8,3690.7,0.108315]
[1754022685616,40.54501872,3690.8,3690.7,0.108315]
[1754022685812,43.52115572,3690.8,3690.7,0.108315]
[1754022685988,36.11273336,3690.4,3690.3,0.1]
[1754022686333,40.9601124,3690.4,3690.3,0.1]
[1754022686628,44.8466124,3690.4,3690.3,0.1]
[1754022686993,14.8466124,3690.4,3690.3,0.1]
[1754022687188,15.45775363,3690.4,3690.3,0.1]
[1754022687437,45.45775363,3690.4,3690.3,0.1]
[1754022687617,45.72915363,3690.4,3690.3,0.1]
[1754022689224,15.73066047,3690.4,3690.3,0.1]
[1754022689522,45.73066047,3690.4,3690.3,0.1]
[1754022691759,0.55,3689.7,3689.1,0.02]
[1754022692055,0.1352,3689.2,3689.1,0.02]
[1754022692204,7.83778993,3689.2,3689.1,0.02]
[1754022692411,37.83778993,3689.2,3689.1,0.02]
[1754022692633,38.29478993,3689.2,3689.1,0.02]
[1754022692837,37.83778993,3689.2,3689.1,0.02]
[1754022693147,45.89546794,3689.2,3689.1,0.02]
[1754022694030,46.35246794,3689.2,3689.1,0.02]
[1754022694207,46.79353777,3689.2,3689.1,0.02]
[1754022694407,46.35223777,3689.2,3689.1,0.02]
[1754022694817,45.89523777,3689.2,3689.1,0.02]
[1754022695313,15.89449198,3689.2,3689.1,0.02]
[1754022696146,10.63281397,3689.2,3689.1,0.02]
[1754022696441,14.588007,3689.2,3689.1,0.4264]
[1754022696939,11.452807,3689.2,3689.1,0.4264]
[1754022697238,4.452807,3689.2,3689.1,0.4264]
[1754022700147,4.452807,3689.2,3689.1,0.02]
[1754022700741,4.588007,3689.2,3689.1,0.02]
[1754022700910,4.3392,3689.2,3689.1,0.02]
[1754022701109,4.58788557,3689.2,3689.1,0.02]
[1754022702660,5.48618557,3689.2,3689.1,0.02]
[1754022702850,5.04488557,3689.2,3689.1,0.02]
[1754022703257,6.03480413,3689.2,3689.1,0.02]
[1754022704183,9.03480413,3689.2,3689.1,0.02]
[1754022704339,39.28369601,3689.2,3689.1,0.02]
[1754022706431,41.99431077,3689.2,3689.1,0.02]
[1754022706867,42.54431077,3689.2,3689.1,0.02]
[1754022707864,36.26090869,3688.8,3688.7,0.1]
[1754022708163,41.09768614,3688.8,3688.7,0.1]
[1754022708466,42.01688614,3688.8,3688.7,0.1]
[1754022709068,39.30597745,3688.8,3688.7,0.1]
[1754022709366,38.75597745,3688.8,3688.7,0.1]
[1754022709566,39.55519977,3688.8,3688.7,0.1]
[1754022709951,34.43199977,3688.8,3688.7,0.1]
[1754022710153,7.83677745,3688.8,3688.7,0.1]
[1754022710537,37.83677745,3688.8,3688.7,0.1]
[1754022710764,35.75597745,3688.8,3688.7,0.1]
[1754022711070,38.75597745,3688.8,3688.7,0.1]
[1754022711772,41.46688614,3688.8,3688.7,0.1]
[1754022711932,44.1917189,3688.8,3688.7,0.1]
[1754022712837,41.48081021,3688.8,3688.7,0.1]
[1754022713039,36.35761021,3688.8,3688.7,0.1]
[1754022713239,3.63277745,3688.8,3688.7,0.1]
[1754022713446,7.83677745,3688.8,3688.7,0.1]
[1754022713643,4.83677745,3688.8,3688.7,0.1]
[1754022713846,4.83677745,3688.8,3688.7,0.5064]
[1754022715977,0.49757745,3688.8,3688.7,0.5064]
[1754022716138,0.24868557,3688.8,3688.7,0.6416]
[1754022716338,0.24868557,3688.9,3688.7,2.15127689]
[1754022716571,0.24868557,3688.8,3688.7,1.74487689]
[1754022717069,0.24868557,3688.9,3688.7,1.74487689]
[1754022717242,4.204,3689.2,3689.0,2.71073979]
[1754022717450,4.204,3689.3,3689.1,0.77311398]
[1754022717633,0.24917405,3689.2,3689.1,0.36671398]
[1754022718076,4.204,3689.3,3689.1,0.36671398]
[1754022718273,4.204,3689.3,3689.2,0.4064]
[1754022718439,4.70238113,3689.3,3689.2,0.4064]
[1754022718639,4.45319502,3689.3,3689.2,0.4064]
[1754022720070,4.70237861,3689.3,3689.2,0.4064]
[1754022720276,0.49837861,3689.3,3689.2,0.9564]
[1754022720477,4.203,3689.9,3689.4,2.71040965]
[1754022720637,0.49843957,3689.8,3689.5,0.43350394]
[1754022720835,0.49844031,3689.7,3689.6,0.4064]
[1754022721035,0.49844031,3689.7,3689.4,2.73751432]
[1754022721274,0.1362,3690.4,3689.7,0.55]
[1754022721475,0.1362,3690.4,3689.6,0.1352]
[1754022721476,0.4984336,3690.3,3690.1,2.70994355]
[1754022721640,0.4983251,3690.2,3690.0,2.7100271]
[1754022721839,0.4983251,3690.1,3690.0,3.2600271]
[1754022722137,0.4983251,3690.1,3690.0,3.44252737]
[1754022722447,0.4983251,3690.1,3690.0,5.58110806]
[1754022722654,0.001,3690.4,3690.3,2.70980679]
[1754022722837,0.001,3690.4,3690.3,6.28690485]
[1754022723038,0.001,3690.4,3690.3,6.80140679]